Workbook

Sheet Maintenance P
B1: Maintenance P
B3: Maintenance P is the amount of phosphorus that needs to be replaced each year.
B4: It is influenced by soil type, landscape, grazing management and rainfall.
B5: Chart 1. Soil Loss Factor
B6: Soil Type | C6: Soil Loss factor
B7: Loams / Sandy loams | C7: Low
B8: Clay loams | C8: Medium
B9: Clays | C9: High
B10: Chart 2. Landscape and Grazing Management Loss Factor
B11: Grazing Management | C11: Landscape | D11: Animal Loss factor
B12: Rotational grazing | C12: Flat and rolling | D12: Very Low
C13: Easy Hills | D13: Low
C14: Steep Hills | D14: Medium
B15: Set Stocked | C15: Flat and rolling | D15: Low
C16: Easy Hills | D16: Medium
C17: Steep Hills | D17: High
B18: Chart 3. Maintenance Rate kg P / DSE
B19: Soil Loss Factor | C19: Animal Loss Factor | D19: Rainfall | E19: Rainfall | F19: Rainfall | G19: Rainfall | H19: Rainfall | I19: Rainfall | J19: Rainfall
D20: 600 | E20: 700 | F20: 800 | G20: 900 | H20: 1000 | I20: 1100 | J20: 1200
B21: Low | C21: Very Low | D21: 0.5 | E21: 0.5 | F21: 0.5 | G21: 0.6 | H21: 0.6 | I21: 0.6 | J21: 0.6
C22: Low | D22: 0.6 | E22: 0.7 | F22: 0.7 | G22: 0.7 | H22: 0.7 | I22: 0.8 | J22: 0.8
C23: Medium | D23: 0.8 | E23: 0.8 | F23: 0.8 | G23: 0.9 | H23: 0.9 | I23: 0.9 | J23: 1
C24: High | D24: 0.9 | E24: 0.9 | F24: 1 | G24: 1 | H24: 1.1 | I24: 1.1 | J24: 1.2
B25: Meduim | C25: Very Low | D25: 0.7 | E25: 0.7 | F25: 0.8 | G25: 0.8 | H25: 0.8 | I25: 0.9 | J25: 0.9
C26: Low | D26: 0.8 | E26: 0.9 | F26: 0.9 | G26: 1 | H26: 1 | I26: 1 | J26: 1.1
C27: Medium | D27: 1 | E27: 1 | F27: 1.1 | G27: 1.1 | H27: 1.2 | I27: 1.2 | J27: 1.3
C28: High | D28: 1.1 | E28: 1.2 | F28: 1.2 | G28: 1.3 | H28: 1.3 | I28: 1.4 | J28: 1.4
B29: High | C29: Very Low | D29: 0.9 | E29: 1 | F29: 1 | G29: 1.1 | H29: 1.1 | I29: 1.1 | J29: 1.2
C30: Low | D30: 1.1 | E30: 1.1 | F30: 1.2 | G30: 1.2 | H30: 1.3 | I30: 1.3 | J30: 1.4
C31: Medium | D31: 1.2 | E31: 1.3 | F31: 1.3 | G31: 1.4 | H31: 1.4 | I31: 1.5 | J31: 1.6
C32: High | D32: 1.3 | E32: 1.4 | F32: 1.5 | G32: 1.5 | H32: 1.6 | I32: 1.7 | J32: 1.7
B34: Source : Better Fertilizer Decisions Project, DPI Vic

Sheet Capital P
B1: Capital P
B3: Capital P is the amount of soluable phosphorus in the soil available for plant uptake.
B4: The aim is to build up to a specific P level and hold it there over time.
B5: The phosphorus buffering index (PBI) indicates how much of the applied phosphorus will be available for plant uptake.
B6: The higher the PBI value the tighter phosphorus will be held by the soil.
B7: Chart 4. Critical soil test value
B8: Test | C8: PBI | D8: Category | E8: Target P level
B9: Colwell | C9: 15-35 | D9: Very Low | E9: 26
C10: 36-70 | D10: Very Low | E10: 29
C11: 71-140 | D11: Low | E11: 34
C12: 141-280 | D12: Moderate | E12: 40
C13: 281-840 | D13: High | E13: 55
B15: Olsen | E15: 15
B17: Source : Better Fertilizer Decisions Project, DPI Vic
B18: Chart 5. Kg/ha of P required to raise P level by one unit
B19: Soil Type | C19: PBI | D19: Colwell | E19: Olsen
B20: Sand | C20: 0-50 | D20: 2.2 | E20: 6
B21: Loams / Sandy loams | C21: 50-300 | D21: 2.5 | E21: 9
B22: Clay loams | C22: 301-400 | D22: 2.8 | E22: 10
B23: Clays | C23: 401-500 | D23: 3 | E23: 11
B25: Source : Accounting for Nutrients on Australian Dairy Farms, DPI Vic / DPI Nsw

Sheet Fertiliser Products
B1: Fertiliser Products
B3: Products | D3: % P | E3: % N | F3: % K | G3: % S | I3: Fertiliser cost ($/t) | J3: Spreading cost ($/t) | K3: Total Cost ($/t) | L3: $/kg P
B4: Single super | D4: 8.8 | E4: 0 | F4: 0 | G4: 11 | I4: 300 | J4: 40 | K4: =I4+J4 -> 340 | L4: =K4/(1000*(D4/100)) -> 3.863636364
B5: MAP | D5: 21.4 | E5: 10 | F5: 0 | G5: 1.5 | I5: 780 | J5: 45 | K5: =I5+J5 -> 825 | L5: =K5/(1000*(D5/100)) -> 3.855140187
B6: DAP | D6: 20 | E6: 18 | F6: 0 | G6: 1.6 | I6: 780 | J6: 45 | K6: 825 | L6: 4.125
B7: Other 1 | D7: 5 | E7: 0 | F7: 0 | G7: 0 | I7: 200 | J7: 60 | K7: 260 | L7: 5.2
B8: Other 2 | D8: 5 | E8: 0 | F8: 0 | G8: 0 | I8: 200 | J8: 60 | K8: 260 | L8: 5.2
B9: Other 3 | D9: 5 | E9: 0 | F9: 0 | G9: 0 | I9: 200 | J9: 60 | K9: 260 | L9: 5.2

Sheet Fertiliser Budget (2013)
B1: Fertiliser Budget
D2: Maintenance | H2: + Capital | P2: = Fertiliser rate | T2: Budget
B4: Paddock Name | D4: Ha | E4: Stocking Rate (dse/ha) | F4: Maintenance (kg P/ha) | H4: Current P Level | I4: Target P Level | J4: Capital (kg P/ha) | L4: No | M4: M only | N4: M+C | O4: Fertiliser Product | P4: Total (kg P/ha) | Q4: Budget Rate (kg fert/ha) | R4: Spread Rate (kg fert /ha) | T4: Total (tonnes) | U4: Total Cost ($) | W4: SS | X4: MAP | Y4: DAP | Z4: Other 1 | AA4: Other 2 | AB4: Other 3
B5: Mel | D5: 80 | E5: 10 | F5: =E5*$F$26 -> 9 | H5: 8.6 | I5: 15 | J5: =(I5-H5)*$J$26 -> 64 | P5: =F5 -> 9 | Q5: =P5/((CHOOSE(V5,'Fertiliser Products'!$D$4,'Fertiliser Products'!$D$5,'Fertiliser Products'!$D$6,'Fertiliser Products'!$D$7,'Fertiliser Products'!$D$8,'Fertiliser Products'!$D$9))/100) -> 102.2727273 | R5: =MROUND(Q5,25) -> 100 | T5: =D5*R5/1000 -> 8 | U5: =T5*(CHOOSE(V5,'Fertiliser Products'!$K$4,'Fertiliser Products'!$K$5,'Fertiliser Products'!$K$6,'Fertiliser Products'!$K$7,'Fertiliser Products'!$K$8,'Fertiliser Products'!$K$9)) -> 2720 | V5: 1 | W5: =IF($V5=1,$T5,0) -> 8 | X5: =IF($V5=2,$T5,0) -> 0 | Y5: =IF($V5=3,$T5,0) -> 0 | Z5: =IF($V5=4,$T5,0) -> 0 | AA5: =IF($V5=5,$T5,0) -> 0 | AB5: =IF($V5=6,$T5,0) -> 0
B6: Geoff | D6: 20 | E6: 14 | F6: =E6*$F$26 -> 12.6 | H6: 15 | I6: 15 | J6: =(I6-H6)*$J$26 -> 0 | P6: =F6+J6 -> 12.6 | Q6: =P6/((CHOOSE(V6,'Fertiliser Products'!$D$4,'Fertiliser Products'!$D$5,'Fertiliser Products'!$D$6,'Fertiliser Products'!$D$7,'Fertiliser Products'!$D$8,'Fertiliser Products'!$D$9))/100) -> 143.1818182 | R6: =MROUND(Q6,25) -> 150 | T6: 3 | U6: =T6*(CHOOSE(V6,'Fertiliser Products'!$K$4,'Fertiliser Products'!$K$5,'Fertiliser Products'!$K$6,'Fertiliser Products'!$K$7,'Fertiliser Products'!$K$8,'Fertiliser Products'!$K$9)) -> 1020 | V6: 1 | W6: 3 | X6: 0 | Y6: 0 | Z6: 0 | AA6: 0 | AB6: 0
B7: George | D7: 20 | E7: 14 | F7: 12.6 | H7: 15 | I7: 15 | J7: 0 | P7: =F7+J7 -> 12.6 | Q7: =P7/((CHOOSE(V7,'Fertiliser Products'!$D$4,'Fertiliser Products'!$D$5,'Fertiliser Products'!$D$6,'Fertiliser Products'!$D$7,'Fertiliser Products'!$D$8,'Fertiliser Products'!$D$9))/100) -> 143.1818182 | R7: 150 | T7: 3 | U7: =T7*(CHOOSE(V7,'Fertiliser Products'!$K$4,'Fertiliser Products'!$K$5,'Fertiliser Products'!$K$6,'Fertiliser Products'!$K$7,'Fertiliser Products'!$K$8,'Fertiliser Products'!$K$9)) -> 1020 | V7: 1 | W7: 3 | X7: 0 | Y7: 0 | Z7: 0 | AA7: 0 | AB7: 0
B8: Luke | D8: 20 | E8: 14 | F8: 12.6 | H8: 15 | I8: 15 | J8: 0 | P8: 12.6 | Q8: =P8/((CHOOSE(V8,'Fertiliser Products'!$D$4,'Fertiliser Products'!$D$5,'Fertiliser Products'!$D$6,'Fertiliser Products'!$D$7,'Fertiliser Products'!$D$8,'Fertiliser Products'!$D$9))/100) -> 143.1818182 | R8: 150 | T8: 3 | U8: =T8*(CHOOSE(V8,'Fertiliser Products'!$K$4,'Fertiliser Products'!$K$5,'Fertiliser Products'!$K$6,'Fertiliser Products'!$K$7,'Fertiliser Products'!$K$8,'Fertiliser Products'!$K$9)) -> 1020 | V8: 1 | W8: 3 | X8: 0 | Y8: 0 | Z8: 0 | AA8: 0 | AB8: 0
B9: Bill | D9: 20 | E9: 14 | F9: 12.6 | H9: 15 | I9: 15 | J9: 0 | P9: 12.6 | Q9: =P9/((CHOOSE(V9,'Fertiliser Products'!$D$4,'Fertiliser Products'!$D$5,'Fertiliser Products'!$D$6,'Fertiliser Products'!$D$7,'Fertiliser Products'!$D$8,'Fertiliser Products'!$D$9))/100) -> 143.1818182 | R9: 150 | T9: 3 | U9: =T9*(CHOOSE(V9,'Fertiliser Products'!$K$4,'Fertiliser Products'!$K$5,'Fertiliser Products'!$K$6,'Fertiliser Products'!$K$7,'Fertiliser Products'!$K$8,'Fertiliser Products'!$K$9)) -> 1020 | V9: 1 | W9: 3 | X9: 0 | Y9: 0 | Z9: 0 | AA9: 0 | AB9: 0
B10: Charles | D10: 20 | E10: 14 | F10: 12.6 | H10: 15 | I10: 15 | J10: 0 | P10: 12.6 | Q10: =P10/((CHOOSE(V10,'Fertiliser Products'!$D$4,'Fertiliser Products'!$D$5,'Fertiliser Products'!$D$6,'Fertiliser Products'!$D$7,'Fertiliser Products'!$D$8,'Fertiliser Products'!$D$9))/100) -> 143.1818182 | R10: 150 | T10: 3 | U10: =T10*(CHOOSE(V10,'Fertiliser Products'!$K$4,'Fertiliser Products'!$K$5,'Fertiliser Products'!$K$6,'Fertiliser Products'!$K$7,'Fertiliser Products'!$K$8,'Fertiliser Products'!$K$9)) -> 1020 | V10: 1 | W10: 3 | X10: 0 | Y10: 0 | Z10: 0 | AA10: 0 | AB10: 0
B11: David | D11: 20 | E11: 14 | F11: 12.6 | H11: 15 | I11: 15 | J11: 0 | P11: 12.6 | Q11: =P11/((CHOOSE(V11,'Fertiliser Products'!$D$4,'Fertiliser Products'!$D$5,'Fertiliser Products'!$D$6,'Fertiliser Products'!$D$7,'Fertiliser Products'!$D$8,'Fertiliser Products'!$D$9))/100) -> 143.1818182 | R11: 150 | T11: 3 | U11: =T11*(CHOOSE(V11,'Fertiliser Products'!$K$4,'Fertiliser Products'!$K$5,'Fertiliser Products'!$K$6,'Fertiliser Products'!$K$7,'Fertiliser Products'!$K$8,'Fertiliser Products'!$K$9)) -> 1020 | V11: 1 | W11: 3 | X11: 0 | Y11: 0 | Z11: 0 | AA11: 0 | AB11: 0
B12: Eddie | D12: 20 | E12: 14 | F12: 12.6 | H12: 15 | I12: 15 | J12: 0 | P12: 12.6 | Q12: =P12/((CHOOSE(V12,'Fertiliser Products'!$D$4,'Fertiliser Products'!$D$5,'Fertiliser Products'!$D$6,'Fertiliser Products'!$D$7,'Fertiliser Products'!$D$8,'Fertiliser Products'!$D$9))/100) -> 143.1818182 | R12: 150 | T12: 3 | U12: =T12*(CHOOSE(V12,'Fertiliser Products'!$K$4,'Fertiliser Products'!$K$5,'Fertiliser Products'!$K$6,'Fertiliser Products'!$K$7,'Fertiliser Products'!$K$8,'Fertiliser Products'!$K$9)) -> 1020 | V12: 1 | W12: 3 | X12: 0 | Y12: 0 | Z12: 0 | AA12: 0 | AB12: 0
B13: Fred | D13: 20 | E13: 14 | F13: =E13*$F$26 -> 12.6 | H13: 15 | I13: 15 | J13: =(I13-H13)*$J$26 -> 0 | P13: =F13+J13 -> 12.6 | Q13: =P13/((CHOOSE(V13,'Fertiliser Products'!$D$4,'Fertiliser Products'!$D$5,'Fertiliser Products'!$D$6,'Fertiliser Products'!$D$7,'Fertiliser Products'!$D$8,'Fertiliser Products'!$D$9))/100) -> 143.1818182 | R13: 150 | T13: 3 | U13: =T13*(CHOOSE(V13,'Fertiliser Products'!$K$4,'Fertiliser Products'!$K$5,'Fertiliser Products'!$K$6,'Fertiliser Products'!$K$7,'Fertiliser Products'!$K$8,'Fertiliser Products'!$K$9)) -> 1020 | V13: 1 | W13: 3 | X13: 0 | Y13: 0 | Z13: 0 | AA13: 0 | AB13: 0
B14: Greg | D14: 20 | E14: 14 | F14: 12.6 | H14: 15 | I14: 15 | J14: 0 | P14: =F14+J14 -> 12.6 | Q14: =P14/((CHOOSE(V14,'Fertiliser Products'!$D$4,'Fertiliser Products'!$D$5,'Fertiliser Products'!$D$6,'Fertiliser Products'!$D$7,'Fertiliser Products'!$D$8,'Fertiliser Products'!$D$9))/100) -> 143.1818182 | R14: 150 | T14: 3 | U14: =T14*(CHOOSE(V14,'Fertiliser Products'!$K$4,'Fertiliser Products'!$K$5,'Fertiliser Products'!$K$6,'Fertiliser Products'!$K$7,'Fertiliser Products'!$K$8,'Fertiliser Products'!$K$9)) -> 1020 | V14: 1 | W14: 3 | X14: 0 | Y14: 0 | Z14: 0 | AA14: 0 | AB14: 0
B15: Harry | D15: 20 | E15: 14 | F15: 12.6 | H15: 15 | I15: 15 | J15: 0 | P15: =F15+J15 -> 12.6 | Q15: =P15/((CHOOSE(V15,'Fertiliser Products'!$D$4,'Fertiliser Products'!$D$5,'Fertiliser Products'!$D$6,'Fertiliser Products'!$D$7,'Fertiliser Products'!$D$8,'Fertiliser Products'!$D$9))/100) -> 143.1818182 | R15: 150 | T15: 3 | U15: =T15*(CHOOSE(V15,'Fertiliser Products'!$K$4,'Fertiliser Products'!$K$5,'Fertiliser Products'!$K$6,'Fertiliser Products'!$K$7,'Fertiliser Products'!$K$8,'Fertiliser Products'!$K$9)) -> 1020 | V15: 1 | W15: 3 | X15: 0 | Y15: 0 | Z15: 0 | AA15: 0 | AB15: 0
B16: Ian | D16: 20 | E16: 14 | F16: 12.6 | H16: 15 | I16: 15 | J16: 0 | P16: =F16+J16 -> 12.6 | Q16: =P16/((CHOOSE(V16,'Fertiliser Products'!$D$4,'Fertiliser Products'!$D$5,'Fertiliser Products'!$D$6,'Fertiliser Products'!$D$7,'Fertiliser Products'!$D$8,'Fertiliser Products'!$D$9))/100) -> 143.1818182 | R16: 150 | T16: 3 | U16: =T16*(CHOOSE(V16,'Fertiliser Products'!$K$4,'Fertiliser Products'!$K$5,'Fertiliser Products'!$K$6,'Fertiliser Products'!$K$7,'Fertiliser Products'!$K$8,'Fertiliser Products'!$K$9)) -> 1020 | V16: 1 | W16: 3 | X16: 0 | Y16: 0 | Z16: 0 | AA16: 0 | AB16: 0
B17: Tim | D17: 20 | E17: 14 | F17: 12.6 | H17: 15 | I17: 15 | J17: 0 | P17: 12.6 | Q17: =P17/((CHOOSE(V17,'Fertiliser Products'!$D$4,'Fertiliser Products'!$D$5,'Fertiliser Products'!$D$6,'Fertiliser Products'!$D$7,'Fertiliser Products'!$D$8,'Fertiliser Products'!$D$9))/100) -> 143.1818182 | R17: 150 | T17: 3 | U17: =T17*(CHOOSE(V17,'Fertiliser Products'!$K$4,'Fertiliser Products'!$K$5,'Fertiliser Products'!$K$6,'Fertiliser Products'!$K$7,'Fertiliser Products'!$K$8,'Fertiliser Products'!$K$9)) -> 1020 | V17: 1 | W17: 3 | X17: 0 | Y17: 0 | Z17: 0 | AA17: 0 | AB17: 0
B18: Tony | D18: 20 | E18: 14 | F18: 12.6 | H18: 15 | I18: 15 | J18: 0 | P18: 12.6 | Q18: =P18/((CHOOSE(V18,'Fertiliser Products'!$D$4,'Fertiliser Products'!$D$5,'Fertiliser Products'!$D$6,'Fertiliser Products'!$D$7,'Fertiliser Products'!$D$8,'Fertiliser Products'!$D$9))/100) -> 143.1818182 | R18: 150 | T18: 3 | U18: =T18*(CHOOSE(V18,'Fertiliser Products'!$K$4,'Fertiliser Products'!$K$5,'Fertiliser Products'!$K$6,'Fertiliser Products'!$K$7,'Fertiliser Products'!$K$8,'Fertiliser Products'!$K$9)) -> 1020 | V18: 1 | W18: 3 | X18: 0 | Y18: 0 | Z18: 0 | AA18: 0 | AB18: 0
B19: Jim | D19: 20 | E19: 14 | F19: 12.6 | H19: 15 | I19: 15 | J19: 0 | P19: 12.6 | Q19: =P19/((CHOOSE(V19,'Fertiliser Products'!$D$4,'Fertiliser Products'!$D$5,'Fertiliser Products'!$D$6,'Fertiliser Products'!$D$7,'Fertiliser Products'!$D$8,'Fertiliser Products'!$D$9))/100) -> 143.1818182 | R19: 150 | T19: 3 | U19: =T19*(CHOOSE(V19,'Fertiliser Products'!$K$4,'Fertiliser Products'!$K$5,'Fertiliser Products'!$K$6,'Fertiliser Products'!$K$7,'Fertiliser Products'!$K$8,'Fertiliser Products'!$K$9)) -> 1020 | V19: 1 | W19: 3 | X19: 0 | Y19: 0 | Z19: 0 | AA19: 0 | AB19: 0
B20: Jack | D20: 20 | E20: 14 | F20: 12.6 | H20: 15 | I20: 15 | J20: 0 | P20: 12.6 | Q20: =P20/((CHOOSE(V20,'Fertiliser Products'!$D$4,'Fertiliser Products'!$D$5,'Fertiliser Products'!$D$6,'Fertiliser Products'!$D$7,'Fertiliser Products'!$D$8,'Fertiliser Products'!$D$9))/100) -> 143.1818182 | R20: 150 | T20: 3 | U20: =T20*(CHOOSE(V20,'Fertiliser Products'!$K$4,'Fertiliser Products'!$K$5,'Fertiliser Products'!$K$6,'Fertiliser Products'!$K$7,'Fertiliser Products'!$K$8,'Fertiliser Products'!$K$9)) -> 1020 | V20: 1 | W20: 3 | X20: 0 | Y20: 0 | Z20: 0 | AA20: 0 | AB20: 0
B21: Kevin | D21: 20 | E21: 14 | F21: 12.6 | H21: 15 | I21: 15 | J21: 0 | P21: 12.6 | Q21: =P21/((CHOOSE(V21,'Fertiliser Products'!$D$4,'Fertiliser Products'!$D$5,'Fertiliser Products'!$D$6,'Fertiliser Products'!$D$7,'Fertiliser Products'!$D$8,'Fertiliser Products'!$D$9))/100) -> 143.1818182 | R21: 150 | T21: 3 | U21: =T21*(CHOOSE(V21,'Fertiliser Products'!$K$4,'Fertiliser Products'!$K$5,'Fertiliser Products'!$K$6,'Fertiliser Products'!$K$7,'Fertiliser Products'!$K$8,'Fertiliser Products'!$K$9)) -> 1020 | V21: 1 | W21: 3 | X21: 0 | Y21: 0 | Z21: 0 | AA21: 0 | AB21: 0
B22: Leo | D22: 20 | E22: 14 | F22: 12.6 | H22: 15 | I22: 15 | J22: 0 | P22: 12.6 | Q22: =P22/((CHOOSE(V22,'Fertiliser Products'!$D$4,'Fertiliser Products'!$D$5,'Fertiliser Products'!$D$6,'Fertiliser Products'!$D$7,'Fertiliser Products'!$D$8,'Fertiliser Products'!$D$9))/100) -> 143.1818182 | R22: 150 | T22: 3 | U22: =T22*(CHOOSE(V22,'Fertiliser Products'!$K$4,'Fertiliser Products'!$K$5,'Fertiliser Products'!$K$6,'Fertiliser Products'!$K$7,'Fertiliser Products'!$K$8,'Fertiliser Products'!$K$9)) -> 1020 | V22: 1 | W22: 3 | X22: 0 | Y22: 0 | Z22: 0 | AA22: 0 | AB22: 0
B23: Sue | D23: 20 | E23: 14 | F23: 12.6 | H23: 15 | I23: 15 | J23: 0 | P23: 12.6 | Q23: =P23/((CHOOSE(V23,'Fertiliser Products'!$D$4,'Fertiliser Products'!$D$5,'Fertiliser Products'!$D$6,'Fertiliser Products'!$D$7,'Fertiliser Products'!$D$8,'Fertiliser Products'!$D$9))/100) -> 143.1818182 | R23: 150 | T23: 3 | U23: =T23*(CHOOSE(V23,'Fertiliser Products'!$K$4,'Fertiliser Products'!$K$5,'Fertiliser Products'!$K$6,'Fertiliser Products'!$K$7,'Fertiliser Products'!$K$8,'Fertiliser Products'!$K$9)) -> 1020 | V23: 1 | W23: 3 | X23: 0 | Y23: 0 | Z23: 0 | AA23: 0 | AB23: 0
B24: Ash | D24: 20 | E24: 14 | F24: 12.6 | H24: 15 | I24: 15 | J24: 0 | P24: 12.6 | Q24: =P24/((CHOOSE(V24,'Fertiliser Products'!$D$4,'Fertiliser Products'!$D$5,'Fertiliser Products'!$D$6,'Fertiliser Products'!$D$7,'Fertiliser Products'!$D$8,'Fertiliser Products'!$D$9))/100) -> 143.1818182 | R24: 150 | T24: 3 | U24: =T24*(CHOOSE(V24,'Fertiliser Products'!$K$4,'Fertiliser Products'!$K$5,'Fertiliser Products'!$K$6,'Fertiliser Products'!$K$7,'Fertiliser Products'!$K$8,'Fertiliser Products'!$K$9)) -> 1020 | V24: 1 | W24: 3 | X24: 0 | Y24: 0 | Z24: 0 | AA24: 0 | AB24: 0
E25: 16 | V25: 1
D26: =SUM(D5:D25) -> 460 | E26: Maintenance rate kg P/dse | F26: 0.9 | I26: Capital rate kg P/unit | J26: 10 | K26: TRUE | L26: Change all | R26: ='Fertiliser Products'!B4 -> Single super | T26: =W27 -> 66 | U26: =SUM(U5:U25) -> 22100 | V26: 1 | W26: 1
R27: ='Fertiliser Products'!B5 -> MAP | T27: =X27 -> 0 | W27: =SUM(W5:W26) -> 66 | X27: =SUM(X5:X26) -> 0 | Y27: 0 | Z27: 0 | AA27: 0 | AB27: 0
R28: ='Fertiliser Products'!B6 -> DAP | T28: =Y27 -> 0
R29: ='Fertiliser Products'!B7 -> Other 1 | T29: =Z27 -> 0
R30: ='Fertiliser Products'!B8 -> Other 2 | T30: =AA27 -> 0
R31: ='Fertiliser Products'!B9 -> Other 3 | T31: =AB27 -> 0

Sheet Fertiliser Budget
B1: Fertiliser Budget
D2: Maintenance | H2: + Capital | P2: = Fertiliser rate | T2: Budget
B4: Paddock Name | D4: Ha | E4: Stocking Rate (dse/ha) | F4: Maintenance (kg P/ha) | H4: Current P Level | I4: Target P Level | J4: Capital (kg P/ha) | L4: No | M4: M only | N4: M+C | O4: Fertiliser Product | P4: Total (kg P/ha) | Q4: Budget Rate (kg fert/ha) | R4: Spread Rate (kg fert /ha) | T4: Total (tonnes) | U4: Total Cost ($) | W4: SS | X4: MAP | Y4: DAP | Z4: Other 1 | AA4: Other 2 | AB4: Other 3
B5: Adam | D5: 20 | E5: 14 | F5: =E5*$F$26 -> 11.2 | H5: 15 | I5: 15 | J5: =(I5-H5)*$J$26 -> 0 | P5: =F5+J5 -> 11.2 | Q5: =P5/((CHOOSE(V5,'Fertiliser Products'!$D$4,'Fertiliser Products'!$D$5,'Fertiliser Products'!$D$6,'Fertiliser Products'!$D$7,'Fertiliser Products'!$D$8,'Fertiliser Products'!$D$9))/100) -> 127.2727273 | R5: =MROUND(Q5,25) -> 125 | T5: =D5*R5/1000 -> 2.5 | U5: =T5*(CHOOSE(V5,'Fertiliser Products'!$K$4,'Fertiliser Products'!$K$5,'Fertiliser Products'!$K$6,'Fertiliser Products'!$K$7,'Fertiliser Products'!$K$8,'Fertiliser Products'!$K$9)) -> 850 | V5: 1 | W5: =IF($V5=1,$T5,0) -> 2.5 | X5: =IF($V5=2,$T5,0) -> 0 | Y5: =IF($V5=3,$T5,0) -> 0 | Z5: =IF($V5=4,$T5,0) -> 0 | AA5: =IF($V5=5,$T5,0) -> 0 | AB5: =IF($V5=6,$T5,0) -> 0
B6: Geoff | D6: 20 | E6: 14 | F6: =E6*$F$26 -> 11.2 | H6: 15 | I6: 15 | J6: =(I6-H6)*$J$26 -> 0 | P6: =F6+J6 -> 11.2 | Q6: =P6/((CHOOSE(V6,'Fertiliser Products'!$D$4,'Fertiliser Products'!$D$5,'Fertiliser Products'!$D$6,'Fertiliser Products'!$D$7,'Fertiliser Products'!$D$8,'Fertiliser Products'!$D$9))/100) -> 127.2727273 | R6: =MROUND(Q6,25) -> 125 | T6: 2.5 | U6: =T6*(CHOOSE(V6,'Fertiliser Products'!$K$4,'Fertiliser Products'!$K$5,'Fertiliser Products'!$K$6,'Fertiliser Products'!$K$7,'Fertiliser Products'!$K$8,'Fertiliser Products'!$K$9)) -> 850 | V6: 1 | W6: 2.5 | X6: 0 | Y6: 0 | Z6: 0 | AA6: 0 | AB6: 0
B7: George | D7: 20 | E7: 14 | F7: 11.2 | H7: 15 | I7: 15 | J7: 0 | P7: =F7+J7 -> 11.2 | Q7: =P7/((CHOOSE(V7,'Fertiliser Products'!$D$4,'Fertiliser Products'!$D$5,'Fertiliser Products'!$D$6,'Fertiliser Products'!$D$7,'Fertiliser Products'!$D$8,'Fertiliser Products'!$D$9))/100) -> 127.2727273 | R7: 125 | T7: 2.5 | U7: =T7*(CHOOSE(V7,'Fertiliser Products'!$K$4,'Fertiliser Products'!$K$5,'Fertiliser Products'!$K$6,'Fertiliser Products'!$K$7,'Fertiliser Products'!$K$8,'Fertiliser Products'!$K$9)) -> 850 | V7: 1 | W7: 2.5 | X7: 0 | Y7: 0 | Z7: 0 | AA7: 0 | AB7: 0
B8: Luke | D8: 20 | E8: 14 | F8: 11.2 | H8: 15 | I8: 15 | J8: 0 | P8: 11.2 | Q8: =P8/((CHOOSE(V8,'Fertiliser Products'!$D$4,'Fertiliser Products'!$D$5,'Fertiliser Products'!$D$6,'Fertiliser Products'!$D$7,'Fertiliser Products'!$D$8,'Fertiliser Products'!$D$9))/100) -> 127.2727273 | R8: 125 | T8: 2.5 | U8: =T8*(CHOOSE(V8,'Fertiliser Products'!$K$4,'Fertiliser Products'!$K$5,'Fertiliser Products'!$K$6,'Fertiliser Products'!$K$7,'Fertiliser Products'!$K$8,'Fertiliser Products'!$K$9)) -> 850 | V8: 1 | W8: 2.5 | X8: 0 | Y8: 0 | Z8: 0 | AA8: 0 | AB8: 0
B9: Bill | D9: 20 | E9: 14 | F9: 11.2 | H9: 15 | I9: 15 | J9: 0 | P9: 11.2 | Q9: =P9/((CHOOSE(V9,'Fertiliser Products'!$D$4,'Fertiliser Products'!$D$5,'Fertiliser Products'!$D$6,'Fertiliser Products'!$D$7,'Fertiliser Products'!$D$8,'Fertiliser Products'!$D$9))/100) -> 127.2727273 | R9: 125 | T9: 2.5 | U9: =T9*(CHOOSE(V9,'Fertiliser Products'!$K$4,'Fertiliser Products'!$K$5,'Fertiliser Products'!$K$6,'Fertiliser Products'!$K$7,'Fertiliser Products'!$K$8,'Fertiliser Products'!$K$9)) -> 850 | V9: 1 | W9: 2.5 | X9: 0 | Y9: 0 | Z9: 0 | AA9: 0 | AB9: 0
B10: Charles | D10: 20 | E10: 14 | F10: 11.2 | H10: 15 | I10: 15 | J10: 0 | P10: 11.2 | Q10: =P10/((CHOOSE(V10,'Fertiliser Products'!$D$4,'Fertiliser Products'!$D$5,'Fertiliser Products'!$D$6,'Fertiliser Products'!$D$7,'Fertiliser Products'!$D$8,'Fertiliser Products'!$D$9))/100) -> 127.2727273 | R10: 125 | T10: 2.5 | U10: =T10*(CHOOSE(V10,'Fertiliser Products'!$K$4,'Fertiliser Products'!$K$5,'Fertiliser Products'!$K$6,'Fertiliser Products'!$K$7,'Fertiliser Products'!$K$8,'Fertiliser Products'!$K$9)) -> 850 | V10: 1 | W10: 2.5 | X10: 0 | Y10: 0 | Z10: 0 | AA10: 0 | AB10: 0
B11: David | D11: 20 | E11: 14 | F11: 11.2 | H11: 15 | I11: 15 | J11: 0 | P11: 11.2 | Q11: =P11/((CHOOSE(V11,'Fertiliser Products'!$D$4,'Fertiliser Products'!$D$5,'Fertiliser Products'!$D$6,'Fertiliser Products'!$D$7,'Fertiliser Products'!$D$8,'Fertiliser Products'!$D$9))/100) -> 127.2727273 | R11: 125 | T11: 2.5 | U11: =T11*(CHOOSE(V11,'Fertiliser Products'!$K$4,'Fertiliser Products'!$K$5,'Fertiliser Products'!$K$6,'Fertiliser Products'!$K$7,'Fertiliser Products'!$K$8,'Fertiliser Products'!$K$9)) -> 850 | V11: 1 | W11: 2.5 | X11: 0 | Y11: 0 | Z11: 0 | AA11: 0 | AB11: 0
B12: Eddie | D12: 20 | E12: 14 | F12: 11.2 | H12: 15 | I12: 15 | J12: 0 | P12: 11.2 | Q12: =P12/((CHOOSE(V12,'Fertiliser Products'!$D$4,'Fertiliser Products'!$D$5,'Fertiliser Products'!$D$6,'Fertiliser Products'!$D$7,'Fertiliser Products'!$D$8,'Fertiliser Products'!$D$9))/100) -> 127.2727273 | R12: 125 | T12: 2.5 | U12: =T12*(CHOOSE(V12,'Fertiliser Products'!$K$4,'Fertiliser Products'!$K$5,'Fertiliser Products'!$K$6,'Fertiliser Products'!$K$7,'Fertiliser Products'!$K$8,'Fertiliser Products'!$K$9)) -> 850 | V12: 1 | W12: 2.5 | X12: 0 | Y12: 0 | Z12: 0 | AA12: 0 | AB12: 0
B13: Fred | D13: 20 | E13: 14 | F13: =E13*$F$26 -> 11.2 | H13: 15 | I13: 15 | J13: =(I13-H13)*$J$26 -> 0 | P13: =F13+J13 -> 11.2 | Q13: =P13/((CHOOSE(V13,'Fertiliser Products'!$D$4,'Fertiliser Products'!$D$5,'Fertiliser Products'!$D$6,'Fertiliser Products'!$D$7,'Fertiliser Products'!$D$8,'Fertiliser Products'!$D$9))/100) -> 127.2727273 | R13: 125 | T13: 2.5 | U13: =T13*(CHOOSE(V13,'Fertiliser Products'!$K$4,'Fertiliser Products'!$K$5,'Fertiliser Products'!$K$6,'Fertiliser Products'!$K$7,'Fertiliser Products'!$K$8,'Fertiliser Products'!$K$9)) -> 850 | V13: 1 | W13: 2.5 | X13: 0 | Y13: 0 | Z13: 0 | AA13: 0 | AB13: 0
B14: Greg | D14: 20 | E14: 14 | F14: 11.2 | H14: 15 | I14: 15 | J14: 0 | P14: =F14+J14 -> 11.2 | Q14: =P14/((CHOOSE(V14,'Fertiliser Products'!$D$4,'Fertiliser Products'!$D$5,'Fertiliser Products'!$D$6,'Fertiliser Products'!$D$7,'Fertiliser Products'!$D$8,'Fertiliser Products'!$D$9))/100) -> 127.2727273 | R14: 125 | T14: 2.5 | U14: =T14*(CHOOSE(V14,'Fertiliser Products'!$K$4,'Fertiliser Products'!$K$5,'Fertiliser Products'!$K$6,'Fertiliser Products'!$K$7,'Fertiliser Products'!$K$8,'Fertiliser Products'!$K$9)) -> 850 | V14: 1 | W14: 2.5 | X14: 0 | Y14: 0 | Z14: 0 | AA14: 0 | AB14: 0
B15: Harry | D15: 20 | E15: 14 | F15: 11.2 | H15: 15 | I15: 15 | J15: 0 | P15: =F15+J15 -> 11.2 | Q15: =P15/((CHOOSE(V15,'Fertiliser Products'!$D$4,'Fertiliser Products'!$D$5,'Fertiliser Products'!$D$6,'Fertiliser Products'!$D$7,'Fertiliser Products'!$D$8,'Fertiliser Products'!$D$9))/100) -> 127.2727273 | R15: 125 | T15: 2.5 | U15: =T15*(CHOOSE(V15,'Fertiliser Products'!$K$4,'Fertiliser Products'!$K$5,'Fertiliser Products'!$K$6,'Fertiliser Products'!$K$7,'Fertiliser Products'!$K$8,'Fertiliser Products'!$K$9)) -> 850 | V15: 1 | W15: 2.5 | X15: 0 | Y15: 0 | Z15: 0 | AA15: 0 | AB15: 0
B16: Ian | D16: 20 | E16: 14 | F16: 11.2 | H16: 15 | I16: 15 | J16: 0 | P16: =F16+J16 -> 11.2 | Q16: =P16/((CHOOSE(V16,'Fertiliser Products'!$D$4,'Fertiliser Products'!$D$5,'Fertiliser Products'!$D$6,'Fertiliser Products'!$D$7,'Fertiliser Products'!$D$8,'Fertiliser Products'!$D$9))/100) -> 127.2727273 | R16: 125 | T16: 2.5 | U16: =T16*(CHOOSE(V16,'Fertiliser Products'!$K$4,'Fertiliser Products'!$K$5,'Fertiliser Products'!$K$6,'Fertiliser Products'!$K$7,'Fertiliser Products'!$K$8,'Fertiliser Products'!$K$9)) -> 850 | V16: 1 | W16: 2.5 | X16: 0 | Y16: 0 | Z16: 0 | AA16: 0 | AB16: 0
B17: Tim | D17: 20 | E17: 14 | F17: 11.2 | H17: 15 | I17: 15 | J17: 0 | P17: 11.2 | Q17: =P17/((CHOOSE(V17,'Fertiliser Products'!$D$4,'Fertiliser Products'!$D$5,'Fertiliser Products'!$D$6,'Fertiliser Products'!$D$7,'Fertiliser Products'!$D$8,'Fertiliser Products'!$D$9))/100) -> 127.2727273 | R17: 125 | T17: 2.5 | U17: =T17*(CHOOSE(V17,'Fertiliser Products'!$K$4,'Fertiliser Products'!$K$5,'Fertiliser Products'!$K$6,'Fertiliser Products'!$K$7,'Fertiliser Products'!$K$8,'Fertiliser Products'!$K$9)) -> 850 | V17: 1 | W17: 2.5 | X17: 0 | Y17: 0 | Z17: 0 | AA17: 0 | AB17: 0
B18: Tony | D18: 20 | E18: 14 | F18: 11.2 | H18: 15 | I18: 15 | J18: 0 | P18: 11.2 | Q18: =P18/((CHOOSE(V18,'Fertiliser Products'!$D$4,'Fertiliser Products'!$D$5,'Fertiliser Products'!$D$6,'Fertiliser Products'!$D$7,'Fertiliser Products'!$D$8,'Fertiliser Products'!$D$9))/100) -> 127.2727273 | R18: 125 | T18: 2.5 | U18: =T18*(CHOOSE(V18,'Fertiliser Products'!$K$4,'Fertiliser Products'!$K$5,'Fertiliser Products'!$K$6,'Fertiliser Products'!$K$7,'Fertiliser Products'!$K$8,'Fertiliser Products'!$K$9)) -> 850 | V18: 1 | W18: 2.5 | X18: 0 | Y18: 0 | Z18: 0 | AA18: 0 | AB18: 0
B19: Jim | D19: 20 | E19: 14 | F19: 11.2 | H19: 15 | I19: 15 | J19: 0 | P19: 11.2 | Q19: =P19/((CHOOSE(V19,'Fertiliser Products'!$D$4,'Fertiliser Products'!$D$5,'Fertiliser Products'!$D$6,'Fertiliser Products'!$D$7,'Fertiliser Products'!$D$8,'Fertiliser Products'!$D$9))/100) -> 127.2727273 | R19: 125 | T19: 2.5 | U19: =T19*(CHOOSE(V19,'Fertiliser Products'!$K$4,'Fertiliser Products'!$K$5,'Fertiliser Products'!$K$6,'Fertiliser Products'!$K$7,'Fertiliser Products'!$K$8,'Fertiliser Products'!$K$9)) -> 850 | V19: 1 | W19: 2.5 | X19: 0 | Y19: 0 | Z19: 0 | AA19: 0 | AB19: 0
B20: Jack | D20: 20 | E20: 14 | F20: 11.2 | H20: 15 | I20: 15 | J20: 0 | P20: 11.2 | Q20: =P20/((CHOOSE(V20,'Fertiliser Products'!$D$4,'Fertiliser Products'!$D$5,'Fertiliser Products'!$D$6,'Fertiliser Products'!$D$7,'Fertiliser Products'!$D$8,'Fertiliser Products'!$D$9))/100) -> 127.2727273 | R20: 125 | T20: 2.5 | U20: =T20*(CHOOSE(V20,'Fertiliser Products'!$K$4,'Fertiliser Products'!$K$5,'Fertiliser Products'!$K$6,'Fertiliser Products'!$K$7,'Fertiliser Products'!$K$8,'Fertiliser Products'!$K$9)) -> 850 | V20: 1 | W20: 2.5 | X20: 0 | Y20: 0 | Z20: 0 | AA20: 0 | AB20: 0
B21: Kevin | D21: 20 | E21: 14 | F21: 11.2 | H21: 15 | I21: 15 | J21: 0 | P21: 11.2 | Q21: =P21/((CHOOSE(V21,'Fertiliser Products'!$D$4,'Fertiliser Products'!$D$5,'Fertiliser Products'!$D$6,'Fertiliser Products'!$D$7,'Fertiliser Products'!$D$8,'Fertiliser Products'!$D$9))/100) -> 127.2727273 | R21: 125 | T21: 2.5 | U21: =T21*(CHOOSE(V21,'Fertiliser Products'!$K$4,'Fertiliser Products'!$K$5,'Fertiliser Products'!$K$6,'Fertiliser Products'!$K$7,'Fertiliser Products'!$K$8,'Fertiliser Products'!$K$9)) -> 850 | V21: 1 | W21: 2.5 | X21: 0 | Y21: 0 | Z21: 0 | AA21: 0 | AB21: 0
B22: Leo | D22: 20 | E22: 14 | F22: 11.2 | H22: 15 | I22: 15 | J22: 0 | P22: 11.2 | Q22: =P22/((CHOOSE(V22,'Fertiliser Products'!$D$4,'Fertiliser Products'!$D$5,'Fertiliser Products'!$D$6,'Fertiliser Products'!$D$7,'Fertiliser Products'!$D$8,'Fertiliser Products'!$D$9))/100) -> 127.2727273 | R22: 125 | T22: 2.5 | U22: =T22*(CHOOSE(V22,'Fertiliser Products'!$K$4,'Fertiliser Products'!$K$5,'Fertiliser Products'!$K$6,'Fertiliser Products'!$K$7,'Fertiliser Products'!$K$8,'Fertiliser Products'!$K$9)) -> 850 | V22: 1 | W22: 2.5 | X22: 0 | Y22: 0 | Z22: 0 | AA22: 0 | AB22: 0
B23: Sue | D23: 20 | E23: 14 | F23: 11.2 | H23: 15 | I23: 15 | J23: 0 | P23: 11.2 | Q23: =P23/((CHOOSE(V23,'Fertiliser Products'!$D$4,'Fertiliser Products'!$D$5,'Fertiliser Products'!$D$6,'Fertiliser Products'!$D$7,'Fertiliser Products'!$D$8,'Fertiliser Products'!$D$9))/100) -> 127.2727273 | R23: 125 | T23: 2.5 | U23: =T23*(CHOOSE(V23,'Fertiliser Products'!$K$4,'Fertiliser Products'!$K$5,'Fertiliser Products'!$K$6,'Fertiliser Products'!$K$7,'Fertiliser Products'!$K$8,'Fertiliser Products'!$K$9)) -> 850 | V23: 1 | W23: 2.5 | X23: 0 | Y23: 0 | Z23: 0 | AA23: 0 | AB23: 0
B24: Ash | D24: 20 | E24: 14 | F24: 11.2 | H24: 15 | I24: 15 | J24: 0 | P24: 11.2 | Q24: =P24/((CHOOSE(V24,'Fertiliser Products'!$D$4,'Fertiliser Products'!$D$5,'Fertiliser Products'!$D$6,'Fertiliser Products'!$D$7,'Fertiliser Products'!$D$8,'Fertiliser Products'!$D$9))/100) -> 127.2727273 | R24: 125 | T24: 2.5 | U24: =T24*(CHOOSE(V24,'Fertiliser Products'!$K$4,'Fertiliser Products'!$K$5,'Fertiliser Products'!$K$6,'Fertiliser Products'!$K$7,'Fertiliser Products'!$K$8,'Fertiliser Products'!$K$9)) -> 850 | V24: 1 | W24: 2.5 | X24: 0 | Y24: 0 | Z24: 0 | AA24: 0 | AB24: 0
E25: 16 | V25: 1
D26: =SUM(D5:D25) -> 400 | E26: Maintenance rate kg P/dse | F26: 0.8 | I26: Capital rate kg P/unit | J26: 9 | K26: TRUE | L26: Change all | R26: ='Fertiliser Products'!B4 -> Single super | T26: =W27 -> 51 | U26: =SUM(U5:U25) -> 17000 | V26: 1 | W26: 1
R27: ='Fertiliser Products'!B5 -> MAP | T27: =X27 -> 0 | W27: =SUM(W5:W26) -> 51 | X27: =SUM(X5:X26) -> 0 | Y27: 0 | Z27: 0 | AA27: 0 | AB27: 0
R28: ='Fertiliser Products'!B6 -> DAP | T28: =Y27 -> 0
R29: ='Fertiliser Products'!B7 -> Other 1 | T29: =Z27 -> 0
R30: ='Fertiliser Products'!B8 -> Other 2 | T30: =AA27 -> 0
R31: ='Fertiliser Products'!B9 -> Other 3 | T31: =AB27 -> 0
